[Event "Titled Tuesday Blitz November 15 Early 2022"]
[White "Deac, Bogdan-Daniel"]
[Black "Kowalczyk, Pawel"]
[WhiteFideId "1226380"]
[BlackFideId "1130641"]
[WhiteElo "2648"]
[BlackElo "2324"]
[Result "1-0"]
[Round "02"]
[TimeControl "180+1"]
[Date "2022.11.15"]
[WhiteClock "0:00:06"]
[BlackClock "0:00:36"]

1. Nf3 {[%clk 0:03:00]}  Nf6 {[%clk 0:02:59]} 2. b3 {[%clk 0:02:59]}  g6 {[%clk 0:02:59]} 3. Bb2 {[%clk 0:02:59]}  Bg7 {[%clk 0:03:00]} 4. g3 {[%clk 0:03:00]}  O-O {[%clk 0:03:00]} 5. Bg2 {[%clk 0:03:00]}  d6 {[%clk 0:02:59]} 6. d4 {[%clk 0:03:00]}  c6 {[%clk 0:02:58]} 7. O-O {[%clk 0:02:59]}  Nbd7 {[%clk 0:02:58]} 8. c4 {[%clk 0:02:57]}  Qc7 {[%clk 0:02:54]} 9. Nc3 {[%clk 0:02:55]}  e5 {[%clk 0:02:53]} 10. e4 {[%clk 0:02:54]}  Rd8 {[%clk 0:02:49]} 11. Rc1 {[%clk 0:02:51]}  exd4 {[%clk 0:02:47]} 12. Nxd4 {[%clk 0:02:50]}  Nc5 {[%clk 0:02:48]} 13. h3 {[%clk 0:02:45]}  a5 {[%clk 0:02:47]} 14. Qc2 {[%clk 0:02:37]}  Nfd7 {[%clk 0:02:23]} 15. Rfd1 {[%clk 0:02:27]}  Nf8 {[%clk 0:02:17]} 16. Kh2 {[%clk 0:02:05]}  h5 {[%clk 0:02:16]} 17. Nf3 {[%clk 0:01:59]}  Nfe6 {[%clk 0:02:12]} 18. h4 {[%clk 0:01:53]}  Qe7 {[%clk 0:02:06]} 19. Re1 {[%clk 0:01:49]}  Nf8 {[%clk 0:02:02]} 20. a3 {[%clk 0:01:12]}  Bg4 {[%clk 0:02:02]} 21. b4 {[%clk 0:00:31]}  axb4 {[%clk 0:01:59]} 22. axb4 {[%clk 0:00:32]}  Na6 {[%clk 0:01:59]} 23. Qb3 {[%clk 0:00:27]}  Nc7 {[%clk 0:01:56]} 24. Ne2 {[%clk 0:00:23]}  Bxb2 {[%clk 0:01:50]} 25. Qxb2 {[%clk 0:00:22]}  Nce6 {[%clk 0:01:44]} 26. Nfg1 {[%clk 0:00:20]}  Bxe2 {[%clk 0:01:43]} 27. Nxe2 {[%clk 0:00:20]}  Ra4 {[%clk 0:01:44]} 28. Nc3 {[%clk 0:00:20]}  Ra7 {[%clk 0:01:43]} 29. Nd5 {[%clk 0:00:20]}  cxd5 {[%clk 0:01:42]} 30. exd5 {[%clk 0:00:20]}  Rda8 {[%clk 0:01:39]} 31. dxe6 {[%clk 0:00:21]}  fxe6 {[%clk 0:01:39]} 32. c5 {[%clk 0:00:21]}  dxc5 {[%clk 0:01:35]} 33. bxc5 {[%clk 0:00:20]}  Qf7 {[%clk 0:01:25]} 34. Re2 {[%clk 0:00:18]}  Nh7 {[%clk 0:01:20]} 35. Bh3 {[%clk 0:00:16]}  Ra6 {[%clk 0:01:18]} 36. Rce1 {[%clk 0:00:15]}  Nf8 {[%clk 0:01:16]} 37. Qe5 {[%clk 0:00:14]}  Rc8 {[%clk 0:01:13]} 38. Qe3 {[%clk 0:00:11]}  Rac6 {[%clk 0:01:09]} 39. Rb2 {[%clk 0:00:11]}  Rxc5 {[%clk 0:01:06]} 40. Reb1 {[%clk 0:00:12]}  R8c7 {[%clk 0:01:06]} 41. Bg2 {[%clk 0:00:11]}  Rc2 {[%clk 0:01:05]} 42. Kg1 {[%clk 0:00:08]}  Rxb2 {[%clk 0:01:03]} 43. Rxb2 {[%clk 0:00:08]}  Nh7 {[%clk 0:01:01]} 44. Rb6 {[%clk 0:00:08]}  Re7 {[%clk 0:01:00]} 45. Bh3 {[%clk 0:00:07]}  Nf8 {[%clk 0:01:01]} 46. Qe4 {[%clk 0:00:08]}  Kg7 {[%clk 0:01:00]} 47. Bg2 {[%clk 0:00:08]}  Rc7 {[%clk 0:00:56]} 48. Qe5+ {[%clk 0:00:07]}  Kh7 {[%clk 0:00:55]} 49. Qe3 {[%clk 0:00:07]}  Nd7 {[%clk 0:00:53]} 50. Rxb7 {[%clk 0:00:07]}  Rxb7 {[%clk 0:00:53]} 51. Bxb7 {[%clk 0:00:08]}  Nf6 {[%clk 0:00:53]} 52. Bf3 {[%clk 0:00:08]}  Nd5 {[%clk 0:00:49]} 53. Qe2 {[%clk 0:00:08]}  Qf5 {[%clk 0:00:48]} 54. Kg2 {[%clk 0:00:08]}  Nf6 {[%clk 0:00:47]} 55. Qc4 {[%clk 0:00:08]}  e5 {[%clk 0:00:47]} 56. Qf7+ {[%clk 0:00:08]}  Kh6 {[%clk 0:00:47]} 57. Qf8+ {[%clk 0:00:08]}  Kh7 {[%clk 0:00:47]} 58. Bc6 {[%clk 0:00:08]}  e4 {[%clk 0:00:46]} 59. Qe7+ {[%clk 0:00:08]}  Kh6 {[%clk 0:00:46]} 60. Qf8+ {[%clk 0:00:08]}  Kh7 {[%clk 0:00:46]} 61. Qe7+ {[%clk 0:00:08]}  Kh6 {[%clk 0:00:46]} 62. Qa3 {[%clk 0:00:08]}  Ng4 {[%clk 0:00:45]} 63. Qb2 {[%clk 0:00:07]}  Qf3+ {[%clk 0:00:45]} 64. Kg1 {[%clk 0:00:07]}  Kh7 {[%clk 0:00:41]} 65. Qd2 {[%clk 0:00:07]}  Nf6 {[%clk 0:00:39]} 66. Bb5 {[%clk 0:00:06]}  Kg7 {[%clk 0:00:39]} 67. Bf1 {[%clk 0:00:06]}  Qf5 {[%clk 0:00:37]} 68. Bg2 {[%clk 0:00:07]}  Qe5 {[%clk 0:00:37]} 69. Qe2 {[%clk 0:00:07]}  Kf7 {[%clk 0:00:37]} 70. Bf1 {[%clk 0:00:07]}  Ng4 {[%clk 0:00:36]} 71. Bg2 {[%clk 0:00:06]}  e3 {[%clk 0:00:37]} 72. fxe3 {[%clk 0:00:06]}  Qxg3 {[%clk 0:00:37]} 73. Qc4+ {[%clk 0:00:06]}  Kg7 {[%clk 0:00:36]} 74. Qd4+ {[%clk 0:00:06]}  Kh7 {[%clk 0:00:35]} 75. Qf4 {[%clk 0:00:06]}  Qe1+ {[%clk 0:00:35]} 76. Bf1 {[%clk 0:00:06]}  Qxh4 {[%clk 0:00:36]} 77. Qf7+ {[%clk 0:00:06]}  Kh6 {[%clk 0:00:36]} 78. Qf8+ {[%clk 0:00:06]}  Kg5 {[%clk 0:00:36]} 79. Qf4# {[%clk 0:00:06]} 1-0


[Site "https://www.chess.com"]

[Event "Titled Tuesday Blitz November 15 Early 2022"]
[White "Di Nicolantonio, Lucas"]
[Black "Ibarra Jerez, Jose Carlos"]
[WhiteFideId "680460"]
[BlackFideId "2226332"]
[WhiteElo "2614"]
[BlackElo "2901"]
[Result "1-0"]
[Round "02"]
[TimeControl "180+1"]
[Date "2022.11.16"]
[WhiteClock "0:00:09"]
[BlackClock "0:00:03"]

1. Nf3 {[%clk 0:03:00]}  Nf6 {[%clk 0:02:59]} 2. c4 {[%clk 0:03:01]}  g6 {[%clk 0:02:59]} 3. Nc3 {[%clk 0:03:01]}  d6 {[%clk 0:03:00]} 4. g3 {[%clk 0:03:01]}  Bg7 {[%clk 0:02:59]} 5. Bg2 {[%clk 0:03:02]}  O-O {[%clk 0:03:00]} 6. O-O {[%clk 0:03:02]}  Nc6 {[%clk 0:03:00]} 7. Rb1 {[%clk 0:02:56]}  a5 {[%clk 0:02:59]} 8. a3 {[%clk 0:02:56]}  e5 {[%clk 0:03:00]} 9. d3 {[%clk 0:02:55]}  Re8 {[%clk 0:02:59]} 10. b4 {[%clk 0:02:55]}  axb4 {[%clk 0:02:59]} 11. axb4 {[%clk 0:02:56]}  e4 {[%clk 0:03:00]} 12. dxe4 {[%clk 0:02:57]}  Nxe4 {[%clk 0:03:00]} 13. Nxe4 {[%clk 0:02:58]}  Rxe4 {[%clk 0:03:00]} 14. b5 {[%clk 0:02:56]}  Na5 {[%clk 0:03:00]} 15. Nd2 {[%clk 0:02:46]}  Re8 {[%clk 0:02:58]} 16. Bb2 {[%clk 0:02:41]}  Bf5 {[%clk 0:02:45]} 17. Bxg7 {[%clk 0:02:12]}  Kxg7 {[%clk 0:02:40]} 18. Ra1 {[%clk 0:02:10]}  Qf6 {[%clk 0:02:38]} 19. Ra3 {[%clk 0:02:03]}  Ra7 {[%clk 0:02:08]} 20. e3 {[%clk 0:01:28]}  b6 {[%clk 0:01:51]} 21. Qa1 {[%clk 0:01:28]}  Re5 {[%clk 0:01:32]} 22. Bd5 {[%clk 0:01:22]}  Bh3 {[%clk 0:01:28]} 23. Ne4 {[%clk 0:01:07]}  Rxe4 {[%clk 0:00:57]} 24. Qxf6+ {[%clk 0:01:07]}  Kxf6 {[%clk 0:00:57]} 25. Bxe4 {[%clk 0:01:07]}  Bxf1 {[%clk 0:00:57]} 26. Kxf1 {[%clk 0:01:08]}  c5 {[%clk 0:00:39]} 27. bxc6 {[%clk 0:01:02]}  Nxc6 {[%clk 0:00:39]} 28. Rd3 {[%clk 0:00:57]}  Ne5 {[%clk 0:00:28]} 29. Rxd6+ {[%clk 0:00:56]}  Ke7 {[%clk 0:00:28]} 30. Rxb6 {[%clk 0:00:56]}  Nxc4 {[%clk 0:00:29]} 31. Rb7+ {[%clk 0:00:37]}  Rxb7 {[%clk 0:00:29]} 32. Bxb7 {[%clk 0:00:38]}  f5 {[%clk 0:00:29]} 33. Ke2 {[%clk 0:00:38]}  Ne5 {[%clk 0:00:29]} 34. Bd5 {[%clk 0:00:37]}  Kf6 {[%clk 0:00:28]} 35. f3 {[%clk 0:00:35]}  Nd7 {[%clk 0:00:27]} 36. Kd3 {[%clk 0:00:34]}  Ke5 {[%clk 0:00:28]} 37. Ba2 {[%clk 0:00:32]}  Nf6 {[%clk 0:00:23]} 38. h3 {[%clk 0:00:29]}  Nd7 {[%clk 0:00:18]} 39. f4+ {[%clk 0:00:28]}  Kd6 {[%clk 0:00:18]} 40. Kd4 {[%clk 0:00:29]}  Nf6 {[%clk 0:00:18]} 41. Bc4 {[%clk 0:00:26]}  Ke7 {[%clk 0:00:15]} 42. Be2 {[%clk 0:00:24]}  h5 {[%clk 0:00:11]} 43. Bf3 {[%clk 0:00:24]}  Kd6 {[%clk 0:00:11]} 44. Ba8 {[%clk 0:00:21]}  Ke7 {[%clk 0:00:11]} 45. Ke5 {[%clk 0:00:22]}  Nd7+ {[%clk 0:00:11]} 46. Kd4 {[%clk 0:00:22]}  Kf6 {[%clk 0:00:11]} 47. Bf3 {[%clk 0:00:21]}  Ke7 {[%clk 0:00:10]} 48. g4 {[%clk 0:00:21]}  hxg4 {[%clk 0:00:10]} 49. hxg4 {[%clk 0:00:22]}  Ke6 {[%clk 0:00:10]} 50. Bd5+ {[%clk 0:00:19]}  Ke7 {[%clk 0:00:09]} 51. g5 {[%clk 0:00:20]}  Nb6 {[%clk 0:00:09]} 52. Bg8 {[%clk 0:00:19]}  Nc8 {[%clk 0:00:09]} 53. Ke5 {[%clk 0:00:18]}  Nd6 {[%clk 0:00:09]} 54. Bd5 {[%clk 0:00:16]}  Nb5 {[%clk 0:00:09]} 55. e4 {[%clk 0:00:14]}  fxe4 {[%clk 0:00:09]} 56. Bxe4 {[%clk 0:00:15]}  Kf7 {[%clk 0:00:09]} 57. Bd5+ {[%clk 0:00:15]}  Kg7 {[%clk 0:00:10]} 58. Bc4 {[%clk 0:00:12]}  Na3 {[%clk 0:00:04]} 59. Bd3 {[%clk 0:00:10]}  Kf7 {[%clk 0:00:04]} 60. Kd4 {[%clk 0:00:11]}  Ke6 {[%clk 0:00:04]} 61. Kc3 {[%clk 0:00:07]}  Kd5 {[%clk 0:00:04]} 62. Kb3 {[%clk 0:00:08]}  Kd4 {[%clk 0:00:04]} 63. Kxa3 {[%clk 0:00:08]}  Kxd3 {[%clk 0:00:02]} 64. f5 {[%clk 0:00:08]}  Ke4 {[%clk 0:00:02]} 65. fxg6 {[%clk 0:00:08]}  Kf5 {[%clk 0:00:03]} 66. g7 {[%clk 0:00:09]}  Kxg5 {[%clk 0:00:03]} 67. g8=Q+ {[%clk 0:00:09]} 1-0


[Site "https://www.chess.com"]

[Event "Titled Tuesday Blitz November 15 Early 2022"]
[White "Dias, Joao Batista"]
[Black "Devaev, Alexander"]
[WhiteFideId "2108240"]
[BlackFideId "4169395"]
[WhiteElo "1898"]
[BlackElo "2225"]
[Result "0-1"]
[Round "02"]
[TimeControl "180+1"]
[Date "2022.11.16"]
[WhiteClock "0:00:17"]
[BlackClock "0:00:49"]

1. e4 {[%clk 0:03:00]}  c6 {[%clk 0:03:00]} 2. d4 {[%clk 0:02:59]}  d5 {[%clk 0:03:01]} 3. Nd2 {[%clk 0:02:59]}  dxe4 {[%clk 0:03:00]} 4. Nxe4 {[%clk 0:02:59]}  Bf5 {[%clk 0:03:00]} 5. Ng3 {[%clk 0:02:58]}  Bg6 {[%clk 0:03:01]} 6. Nf3 {[%clk 0:02:57]}  Nd7 {[%clk 0:03:01]} 7. Bd3 {[%clk 0:02:57]}  e6 {[%clk 0:03:00]} 8. O-O {[%clk 0:02:57]}  Ngf6 {[%clk 0:03:00]} 9. Re1 {[%clk 0:02:57]}  Bd6 {[%clk 0:03:01]} 10. Ne5 {[%clk 0:02:43]}  Qc7 {[%clk 0:03:00]} 11. f4 {[%clk 0:02:38]}  O-O {[%clk 0:02:54]} 12. b3 {[%clk 0:02:24]}  c5 {[%clk 0:02:53]} 13. c3 {[%clk 0:02:23]}  Nd5 {[%clk 0:02:44]} 14. Bxg6 {[%clk 0:02:15]}  hxg6 {[%clk 0:02:44]} 15. c4 {[%clk 0:02:01]}  N5f6 {[%clk 0:02:22]} 16. Nxd7 {[%clk 0:02:00]}  Qxd7 {[%clk 0:02:19]} 17. dxc5 {[%clk 0:01:53]}  Bxc5+ {[%clk 0:02:18]} 18. Kh1 {[%clk 0:01:53]}  Qc6 {[%clk 0:02:05]} 19. Bb2 {[%clk 0:01:48]}  Rad8 {[%clk 0:02:03]} 20. Qe2 {[%clk 0:01:46]}  a5 {[%clk 0:01:59]} 21. Rad1 {[%clk 0:01:43]}  a4 {[%clk 0:01:20]} 22. h3 {[%clk 0:01:38]}  Qb6 {[%clk 0:01:19]} 23. Qf3 {[%clk 0:01:25]}  Bf2 {[%clk 0:01:11]} 24. Rf1 {[%clk 0:01:10]}  Rxd1 {[%clk 0:00:58]} 25. Rxd1 {[%clk 0:01:07]}  Bxg3 {[%clk 0:00:58]} 26. Qxg3 {[%clk 0:01:07]}  Ne4 {[%clk 0:00:59]} 27. Qf3 {[%clk 0:00:54]}  Nf2+ {[%clk 0:00:58]} 28. Kh2 {[%clk 0:00:53]}  Nxd1 {[%clk 0:00:58]} 29. Qxd1 {[%clk 0:00:53]}  Rd8 {[%clk 0:00:56]} 30. Qc2 {[%clk 0:00:53]}  axb3 {[%clk 0:00:50]} 31. axb3 {[%clk 0:00:53]}  Qe3 {[%clk 0:00:50]} 32. Be5 {[%clk 0:00:42]}  Rd3 {[%clk 0:00:51]} 33. b4 {[%clk 0:00:20]}  Qg3+ {[%clk 0:00:50]} 34. Kg1 {[%clk 0:00:17]}  Re3 {[%clk 0:00:49]} 0-1


[Site "https://www.chess.com"]

[Event "Titled Tuesday Blitz November 15 Early 2022"]
[White "Dilmukhametov, Artur"]
[Black "Hajiyev, Kanan"]
[WhiteFideId "24179922"]
[BlackFideId "13404148"]
[WhiteElo "2197"]
[BlackElo "2118"]
[Result "0-1"]
[Round "02"]
[TimeControl "180+1"]
[Date "2022.11.16"]
[WhiteClock "0:02:47"]
[BlackClock "0:02:52"]

1. e4 {[%clk 0:03:00]}  c6 {[%clk 0:02:59]} 2. Nc3 {[%clk 0:02:59]}  d5 {[%clk 0:03:00]} 3. Qf3 {[%clk 0:02:59]}  dxe4 {[%clk 0:02:59]} 4. Nxe4 {[%clk 0:02:58]}  Nf6 {[%clk 0:02:59]} 5. Bc4 {[%clk 0:02:56]}  e6 {[%clk 0:02:59]} 6. d3 {[%clk 0:02:55]}  Nbd7 {[%clk 0:02:55]} 7. Bg5 {[%clk 0:02:54]}  Be7 {[%clk 0:02:56]} 8. Qg3 {[%clk 0:02:50]}  Nxe4 {[%clk 0:02:53]} 9. dxe4 {[%clk 0:02:49]}  Bxg5 {[%clk 0:02:52]} 10. f4 {[%clk 0:02:47]}  Bh4 {[%clk 0:02:52]} 0-1


[Site "https://www.chess.com"]

[Event "Titled Tuesday Blitz November 15 Early 2022"]
[White "Fathy, Elameir"]
[Black "Johnson, Ben"]
[WhiteFideId "10600396"]
[BlackFideId "2010917"]
[WhiteElo "2311"]
[BlackElo "2121"]
[Result "1-0"]
[Round "02"]
[TimeControl "180+1"]
[Date "2022.11.16"]
[WhiteClock "0:00:15"]
[BlackClock "0:00:02"]

1. d4 {[%clk 0:03:00]}  Nf6 {[%clk 0:02:59]} 2. c4 {[%clk 0:03:01]}  e6 {[%clk 0:02:59]} 3. Nf3 {[%clk 0:03:01]}  d5 {[%clk 0:02:59]} 4. g3 {[%clk 0:03:01]}  dxc4 {[%clk 0:02:58]} 5. Bg2 {[%clk 0:03:02]}  c5 {[%clk 0:02:58]} 6. O-O {[%clk 0:03:02]}  Nc6 {[%clk 0:02:59]} 7. dxc5 {[%clk 0:03:02]}  Qxd1 {[%clk 0:02:58]} 8. Rxd1 {[%clk 0:03:03]}  Bxc5 {[%clk 0:02:57]} 9. Nbd2 {[%clk 0:03:04]}  c3 {[%clk 0:02:56]} 10. bxc3 {[%clk 0:03:05]}  O-O {[%clk 0:02:56]} 11. Nb3 {[%clk 0:03:05]}  Be7 {[%clk 0:02:56]} 12. Nfd4 {[%clk 0:03:06]}  Bd7 {[%clk 0:02:51]} 13. a4 {[%clk 0:03:04]}  Rac8 {[%clk 0:02:36]} 14. Nb5 {[%clk 0:02:54]}  Rfd8 {[%clk 0:02:12]} 15. Be3 {[%clk 0:02:48]}  a6 {[%clk 0:01:42]} 16. Nd6 {[%clk 0:02:47]}  Rb8 {[%clk 0:01:42]} 17. Bb6 {[%clk 0:02:43]}  Rf8 {[%clk 0:01:35]} 18. Nc5 {[%clk 0:02:36]}  Be8 {[%clk 0:01:31]} 19. a5 {[%clk 0:02:14]}  Bxd6 {[%clk 0:01:03]} 20. Rxd6 {[%clk 0:02:15]}  Nd5 {[%clk 0:00:43]} 21. Bxd5 {[%clk 0:02:02]}  exd5 {[%clk 0:00:44]} 22. Rxd5 {[%clk 0:02:03]}  Ne7 {[%clk 0:00:36]} 23. Rd6 {[%clk 0:01:39]}  Bc6 {[%clk 0:00:36]} 24. c4 {[%clk 0:01:25]}  Rfe8 {[%clk 0:00:33]} 25. Rd2 {[%clk 0:01:22]}  Nf5 {[%clk 0:00:28]} 26. e3 {[%clk 0:01:09]}  g6 {[%clk 0:00:24]} 27. Rc1 {[%clk 0:01:00]}  Ng7 {[%clk 0:00:23]} 28. Nd7 {[%clk 0:01:00]}  Bxd7 {[%clk 0:00:17]} 29. Rxd7 {[%clk 0:01:01]}  Ne6 {[%clk 0:00:15]} 30. Kg2 {[%clk 0:00:55]}  Rec8 {[%clk 0:00:15]} 31. f4 {[%clk 0:00:51]}  Nc5 {[%clk 0:00:15]} 32. Rd5 {[%clk 0:00:46]}  Ne4 {[%clk 0:00:12]} 33. f5 {[%clk 0:00:41]}  Rc6 {[%clk 0:00:10]} 34. Kf3 {[%clk 0:00:36]}  Nf6 {[%clk 0:00:08]} 35. Rd3 {[%clk 0:00:30]}  Rbc8 {[%clk 0:00:08]} 36. fxg6 {[%clk 0:00:21]}  hxg6 {[%clk 0:00:08]} 37. c5 {[%clk 0:00:21]}  Kg7 {[%clk 0:00:06]} 38. Rcd1 {[%clk 0:00:20]}  Re8 {[%clk 0:00:05]} 39. Rd6 {[%clk 0:00:19]}  Ne4 {[%clk 0:00:05]} 40. Rxc6 {[%clk 0:00:19]}  bxc6 {[%clk 0:00:03]} 41. Rd7 {[%clk 0:00:18]}  Nc3 {[%clk 0:00:02]} 42. Ra7 {[%clk 0:00:18]}  Nd5 {[%clk 0:00:03]} 43. e4 {[%clk 0:00:17]}  Nf6 {[%clk 0:00:02]} 44. Rxa6 {[%clk 0:00:16]}  Nxe4 {[%clk 0:00:01]} 45. Ra7 {[%clk 0:00:15]}  Ng5+ {[%clk 0:00:02]} 46. Kg2 {[%clk 0:00:15]} 1-0


[Site "https://www.chess.com"]

[Event "Titled Tuesday Blitz November 15 Early 2022"]
[White "Fernandez De La Vara, Arnaldo"]
[Black "Andreikin, Dmitry"]
[WhiteFideId "3518388"]
[BlackFideId "4158814"]
[WhiteElo "2387"]
[BlackElo "2736"]
[Result "0-1"]
[Round "02"]
[TimeControl "180+1"]
[Date "2022.11.15"]
[WhiteClock "0:00:04"]
[BlackClock "0:01:21"]

1. Nf3 {[%clk 0:03:00]}  Nf6 {[%clk 0:02:59]} 2. g3 {[%clk 0:03:01]}  b5 {[%clk 0:02:56]} 3. Bg2 {[%clk 0:03:00]}  Bb7 {[%clk 0:02:57]} 4. O-O {[%clk 0:03:00]}  e6 {[%clk 0:02:57]} 5. b3 {[%clk 0:03:00]}  a5 {[%clk 0:02:56]} 6. c4 {[%clk 0:02:50]}  b4 {[%clk 0:02:55]} 7. d4 {[%clk 0:02:45]}  g6 {[%clk 0:02:52]} 8. Nbd2 {[%clk 0:02:30]}  Bg7 {[%clk 0:02:52]} 9. Qc2 {[%clk 0:02:31]}  O-O {[%clk 0:02:51]} 10. e4 {[%clk 0:02:21]}  c5 {[%clk 0:02:50]} 11. Bb2 {[%clk 0:02:16]}  cxd4 {[%clk 0:02:50]} 12. Nxd4 {[%clk 0:02:00]}  Nc6 {[%clk 0:02:50]} 13. Nb5 {[%clk 0:01:33]}  d6 {[%clk 0:02:40]} 14. Rfd1 {[%clk 0:01:21]}  Qe7 {[%clk 0:02:40]} 15. Rac1 {[%clk 0:01:20]}  Rfd8 {[%clk 0:02:40]} 16. h3 {[%clk 0:01:14]}  Nd7 {[%clk 0:02:20]} 17. Nf1 {[%clk 0:01:01]}  Bxb2 {[%clk 0:02:16]} 18. Qxb2 {[%clk 0:01:02]}  Nc5 {[%clk 0:02:16]} 19. Ne3 {[%clk 0:01:02]}  a4 {[%clk 0:02:15]} 20. Ng4 {[%clk 0:01:02]}  e5 {[%clk 0:02:14]} 21. Ne3 {[%clk 0:00:57]}  axb3 {[%clk 0:02:11]} 22. Nd5 {[%clk 0:00:54]}  Qf8 {[%clk 0:02:07]} 23. axb3 {[%clk 0:00:52]}  Na5 {[%clk 0:02:07]} 24. f4 {[%clk 0:00:44]}  Naxb3 {[%clk 0:02:04]} 25. fxe5 {[%clk 0:00:41]}  Bxd5 {[%clk 0:02:01]} 26. exd5 {[%clk 0:00:04]}  Nxc1 {[%clk 0:02:01]} 27. Qxc1 {[%clk 0:00:05]}  dxe5 {[%clk 0:01:57]} 28. d6 {[%clk 0:00:05]}  Ra2 {[%clk 0:01:56]} 29. Qe3 {[%clk 0:00:05]}  Ne6 {[%clk 0:01:50]} 30. c5 {[%clk 0:00:05]}  Ra5 {[%clk 0:01:45]} 31. Bf1 {[%clk 0:00:03]}  Rb8 {[%clk 0:01:27]} 32. Nc7 {[%clk 0:00:02]}  Nxc7 {[%clk 0:01:24]} 33. dxc7 {[%clk 0:00:03]}  Rc8 {[%clk 0:01:25]} 34. Qxe5 {[%clk 0:00:04]}  Rxc5 {[%clk 0:01:21]} 35. Qxc5 {[%clk 0:00:04]}  Qxc5+ {[%clk 0:01:21]} 0-1


[Site "https://www.chess.com"]

[Event "Titled Tuesday Blitz November 15 Early 2022"]
[White "Fernandez Siles, Luis"]
[Black "Tregubov, Pavel V."]
[WhiteFideId "2209420"]
[BlackFideId "4115341"]
[WhiteElo "2186"]
[BlackElo "2448"]
[Result "1-0"]
[Round "02"]
[TimeControl "180+1"]
[Date "2022.11.16"]
[WhiteClock "0:01:15"]
[BlackClock "0:00:23"]

1. d4 {[%clk 0:03:00]}  Nf6 {[%clk 0:02:59]} 2. c4 {[%clk 0:03:00]}  e6 {[%clk 0:02:59]} 3. Nc3 {[%clk 0:02:59]}  Bb4 {[%clk 0:02:59]} 4. e3 {[%clk 0:03:00]}  O-O {[%clk 0:02:58]} 5. Ne2 {[%clk 0:03:00]}  d5 {[%clk 0:02:56]} 6. a3 {[%clk 0:03:00]}  Be7 {[%clk 0:02:55]} 7. cxd5 {[%clk 0:03:00]}  exd5 {[%clk 0:02:54]} 8. g3 {[%clk 0:03:01]}  c6 {[%clk 0:02:36]} 9. Bg2 {[%clk 0:03:01]}  Na6 {[%clk 0:02:37]} 10. O-O {[%clk 0:02:59]}  Nc7 {[%clk 0:02:37]} 11. f3 {[%clk 0:02:58]}  c5 {[%clk 0:02:34]} 12. dxc5 {[%clk 0:02:52]}  Bxc5 {[%clk 0:02:34]} 13. Nd4 {[%clk 0:02:45]}  Ne6 {[%clk 0:02:34]} 14. Nce2 {[%clk 0:02:40]}  Re8 {[%clk 0:02:14]} 15. Bd2 {[%clk 0:02:36]}  Nxd4 {[%clk 0:02:14]} 16. Nxd4 {[%clk 0:02:34]}  Qb6 {[%clk 0:02:12]} 17. Bc1 {[%clk 0:01:59]}  Bd7 {[%clk 0:01:59]} 18. Kh1 {[%clk 0:01:54]}  Rac8 {[%clk 0:01:59]} 19. b3 {[%clk 0:01:48]}  Bb5 {[%clk 0:01:50]} 20. Nxb5 {[%clk 0:01:44]}  Qxb5 {[%clk 0:01:49]} 21. Bb2 {[%clk 0:01:28]}  Rxe3 {[%clk 0:01:38]} 22. Bxf6 {[%clk 0:01:26]}  gxf6 {[%clk 0:01:38]} 23. Qxd5 {[%clk 0:01:26]}  Qxb3 {[%clk 0:01:29]} 24. Qh5 {[%clk 0:01:17]}  Qe6 {[%clk 0:01:23]} 25. Bh3 {[%clk 0:01:15]}  Qc6 {[%clk 0:00:23]} 26. Qg4+ {[%clk 0:01:15]} 1-0


[Site "https://www.chess.com"]

[Event "Titled Tuesday Blitz November 15 Early 2022"]
[White "Flis, Pawel"]
[Black "Baches Garcia, Guillermo"]
[WhiteFideId "1112864"]
[BlackFideId "2209764"]
[WhiteElo "1817"]
[BlackElo "2428"]
[Result "0-1"]
[Round "02"]
[TimeControl "180+1"]
[Date "2022.11.16"]
[WhiteClock "0:00:02"]
[BlackClock "0:00:25"]

1. e4 {[%clk 0:03:00]}  c5 {[%clk 0:02:59]} 2. Nf3 {[%clk 0:02:58]}  d6 {[%clk 0:03:00]} 3. d4 {[%clk 0:02:58]}  cxd4 {[%clk 0:03:00]} 4. Nxd4 {[%clk 0:02:58]}  Nf6 {[%clk 0:03:01]} 5. Nc3 {[%clk 0:02:58]}  a6 {[%clk 0:03:02]} 6. Bg5 {[%clk 0:02:59]}  e6 {[%clk 0:03:01]} 7. f4 {[%clk 0:02:59]}  Qc7 {[%clk 0:03:01]} 8. Qf3 {[%clk 0:02:57]}  b5 {[%clk 0:03:00]} 9. O-O-O {[%clk 0:02:55]}  b4 {[%clk 0:02:58]} 10. Nce2 {[%clk 0:02:36]}  Bb7 {[%clk 0:02:56]} 11. Bxf6 {[%clk 0:02:35]}  gxf6 {[%clk 0:02:55]} 12. Ng3 {[%clk 0:02:36]}  Nd7 {[%clk 0:02:51]} 13. Kb1 {[%clk 0:02:34]}  Qc5 {[%clk 0:02:40]} 14. Nb3 {[%clk 0:02:31]}  Qb6 {[%clk 0:02:36]} 15. f5 {[%clk 0:02:22]}  Ne5 {[%clk 0:02:24]} 16. Qh5 {[%clk 0:02:18]}  O-O-O {[%clk 0:02:20]} 17. Be2 {[%clk 0:01:53]}  Kb8 {[%clk 0:02:02]} 18. fxe6 {[%clk 0:01:53]}  fxe6 {[%clk 0:02:02]} 19. Bg4 {[%clk 0:01:53]}  d5 {[%clk 0:01:53]} 20. exd5 {[%clk 0:01:51]}  Bxd5 {[%clk 0:01:53]} 21. Qh3 {[%clk 0:01:46]}  f5 {[%clk 0:01:37]} 22. Be2 {[%clk 0:01:26]}  Be7 {[%clk 0:01:13]} 23. Nh5 {[%clk 0:01:24]}  Bg5 {[%clk 0:01:07]} 24. Rhe1 {[%clk 0:01:16]}  Ng6 {[%clk 0:01:02]} 25. g3 {[%clk 0:01:11]}  Rc8 {[%clk 0:00:45]} 26. Qf1 {[%clk 0:01:09]}  Rc6 {[%clk 0:00:31]} 27. Bf3 {[%clk 0:01:03]}  Bxf3 {[%clk 0:00:31]} 28. Qxf3 {[%clk 0:01:02]}  Rhc8 {[%clk 0:00:31]} 29. Re2 {[%clk 0:00:53]}  a5 {[%clk 0:00:29]} 30. Nd4 {[%clk 0:00:47]}  Rd6 {[%clk 0:00:29]} 31. h4 {[%clk 0:00:12]}  Bh6 {[%clk 0:00:28]} 32. Qd3 {[%clk 0:00:07]}  e5 {[%clk 0:00:25]} 33. Qb3 {[%clk 0:00:02]}  Rxd4 {[%clk 0:00:25]} 0-1


[Site "https://www.chess.com"]